[Event "44th Chess Olympiad Women 2022"]
[Site "Chennai"]
[Date "2022.08.05"]
[Round "7.61"]
[White "Lam, Pooja"]
[Black "Al Ghafri, Alanoud"]
[Result "0-1"]
[WhiteElo "1163"]
[BlackElo "1259"]
[Annotator "NA"]
[PlyCount "86"]
[EventDate "2022.??.??"]
[TimeControl "60"]

1. d4 {[%emt 0:00:03]} Nf6 {[%emt 0:00:14]} 2. Nf3 {[%emt 0:00:17]} e6 {
[%emt 0:00:31]} 3. c4 {[%emt 0:00:23]} b6 {[%emt 0:01:11]} 4. g3 {[%emt 0:00:
00]} Bb7 {[%emt 0:02:04]} 5. Bg2 {[%emt 0:00:32]} Bb4+ {[%emt 0:01:48]} 6. Bd2
{[%emt 0:03:15]} Be7 {[%emt 0:00:39]} 7. Nc3 {[%emt 0:00:30]} O-O {[%emt 0:00:
00]} 8. O-O {[%emt 0:01:54]} d5 {[%emt 0:01:09]} 9. cxd5 {[%emt 0:01:10]} Nxd5
{[%emt 0:01:07]} 10. Rc1 {[%emt 0:02:17]} Nd7 {[%emt 0:01:47]} 11. Re1 {
[%emt 0:03:18]} c5 {[%emt 0:03:01]} 12. dxc5 {[%emt 0:04:45]} Nxc5 {[%emt 0:00:
00]} 13. Nxd5 {[%emt 0:03:08]} Bxd5 {[%emt 0:00:59]} 14. b3 {[%emt 0:00:13]}
Rc8 {[%emt 0:03:09]} 15. Bc3 {[%emt 0:06:19]} h6 {[%emt 0:04:43]} 16. Ne5 {
[%emt 0:03:55]} Ne4 {[%emt 0:05:59]} 17. Bb2 {[%emt 0:05:56]} Bf6 {[%emt 0:00:
00]} 18. f3 {[%emt 0:04:29]} Ng5 {[%emt 0:05:07]} 19. e4 {[%emt 0:01:58]} Ba8 {
[%emt 0:01:35]} 20. Rxc8 {[%emt 0:01:47]} Qxc8 {[%emt 0:00:29]} 21. Nd7 {
[%emt 0:01:41]} Bxb2 {[%emt 0:04:56]} 22. Nxf8 {[%emt 0:00:20]} Kxf8 {[%emt 0:
00:00]} 23. Re2 {[%emt 0:03:23]} Bf6 {[%emt 0:01:49]} 24. f4 {[%emt 0:06:54]}
Nh7 {[%emt 0:05:12]} 25. e5 {[%emt 0:00:45]} Bxg2 {[%emt 0:03:20]} 26. Rxg2 {
[%emt 0:00:28]} Be7 {[%emt 0:00:38]} 27. Rc2 {[%emt 0:04:01]} Qd8 {[%emt 0:00:
00]} 28. Rd2 {[%emt 0:07:47]} Qc7 {[%emt 0:03:19]} 29. Rc2 {[%emt 0:03:35]} Qd8
{[%emt 0:03:57]} 30. Rd2 {[%emt 0:04:11]} Qc8 {[%emt 0:00:08]} 31. Rd7 {
[%emt 0:02:04]} Bc5+ {[%emt 0:06:18]} 32. Kg2 {[%emt 0:00:23]} Qc6+ {[%emt 0:
00:00]} 33. Kh3 {[%emt 0:00:45]} g5 {[%emt 0:02:40]} 34. Rd3 {[%emt 0:04:43]}
gxf4 {[%emt 0:04:54]} 35. gxf4 {[%emt 0:00:52]} Qe4 {[%emt 0:01:06]} 36. Rd8+ {
[%emt 0:01:13]} Kg7 {[%emt 0:00:42]} 37. Qg4+ {[%emt 0:00:17]} Qg6 {[%emt 0:00:
00]} 38. Qxg6+ {[%emt 0:01:05]} Kxg6 {[%emt 0:00:15]} 39. Rg8+ {[%emt 0:01:06]}
Kf5 {[%emt 0:00:18]} 40. Rh8 {[%emt 0:00:25]} Kg6 {[%emt 0:00:26]} 41. Rg8+ {
[%emt 0:31:01]} Kf5 {[%emt 0:30:39]} 42. Rh8 {[%emt 0:00:05]} Nf8 {[%emt 0:00:
00]} 43. Rxf8 {[%emt 0:00:17]} Bxf8 {[%emt 0:00:05]} 0-1

[Event "44th Chess Olympiad Women 2022"]
[Site "Chennai"]
[Date "2022.08.05"]
[Round "7.62"]
[White "Seder, Randa"]
[Black "Acham, Meritza"]
[Result "1/2-1/2"]
[WhiteElo "1442"]
[BlackElo "1397"]
[Annotator "NA"]
[PlyCount "79"]
[EventDate "2022.??.??"]
[TimeControl "60"]

1. e4 {[%emt 0:04:00]} c5 {[%emt 0:00:10]} 2. Nf3 {[%emt 0:00:15]} d6 {[%emt 0:
00:00]} 3. Bb5+ {[%emt 0:00:31]} Nd7 {[%emt 0:00:24]} 4. c3 {[%emt 0:00:37]} a6
{[%emt 0:00:35]} 5. Bxd7+ {[%emt 0:01:14]} Bxd7 {[%emt 0:00:23]} 6. d4 {
[%emt 0:00:35]} Qc7 {[%emt 0:02:52]} 7. Bf4 {[%emt 0:01:54]} Nf6 {[%emt 0:00:
00]} 8. Nbd2 {[%emt 0:03:55]} e6 {[%emt 0:06:40]} 9. O-O {[%emt 0:01:40]} Be7 {
[%emt 0:00:42]} 10. Re1 {[%emt 0:01:52]} O-O {[%emt 0:00:48]} 11. h3 {[%emt 0:
00:00]} b5 {[%emt 0:01:43]} 12. Rc1 {[%emt 0:04:10]} Qb7 {[%emt 0:00:56]} 13.
Bxd6 {[%emt 0:02:05]} Bxd6 {[%emt 0:02:54]} 14. e5 {[%emt 0:00:15]} Be7 {
[%emt 0:00:08]} 15. exf6 {[%emt 0:00:29]} gxf6 {[%emt 0:00:40]} 16. Ne4 {
[%emt 0:00:36]} c4 {[%emt 0:03:35]} 17. Nfd2 {[%emt 0:05:32]} Qd5 {[%emt 0:00:
00]} 18. Qg4+ {[%emt 0:06:18]} Kh8 {[%emt 0:00:24]} 19. Qh4 {[%emt 0:01:12]}
Rg8 {[%emt 0:04:17]} 20. Re3 {[%emt 0:04:50]} Rg6 {[%emt 0:04:38]} 21. Rg3 {
[%emt 0:06:21]} Rag8 {[%emt 0:00:55]} 22. Rxg6 {[%emt 0:00:54]} Rxg6 {[%emt 0:
00:00]} 23. Re1 {[%emt 0:02:09]} Bd8 {[%emt 0:05:49]} 24. Nf3 {[%emt 0:03:27]}
Qa8 {[%emt 0:04:27]} 25. Kf1 {[%emt 0:04:11]} f5 {[%emt 0:11:01]} 26. Neg5 {
[%emt 0:00:32]} Bxg5 {[%emt 0:00:25]} 27. Nxg5 {[%emt 0:01:52]} Qg8 {[%emt 0:
00:00]} 28. Nxh7 {[%emt 0:05:43]} Qxh7 {[%emt 0:02:55]} 29. Qd8+ {[%emt 0:00:
00]} Qg8 {[%emt 0:00:08]} 30. Qxd7 {[%emt 0:00:48]} Rxg2 {[%emt 0:00:46]} 31.
Qe7 {[%emt 0:01:53]} Rg6 {[%emt 0:10:30]} 32. d5 {[%emt 0:00:57]} Rg1+ {
[%emt 0:01:48]} 33. Ke2 {[%emt 0:00:36]} Rxe1+ {[%emt 0:04:31]} 34. Kxe1 {
[%emt 0:00:11]} exd5 {[%emt 0:04:27]} 35. Qe5+ {[%emt 0:00:39]} Qg7 {[%emt 0:
00:00]} 36. Qxf5 {[%emt 0:00:28]} d4 {[%emt 0:04:22]} 37. Qc8+ {[%emt 0:01:12]}
Kh7 {[%emt 0:00:18]} 38. Qf5+ {[%emt 0:00:25]} Kg8 {[%emt 0:06:24]} 39. Qc8+ {
[%emt 0:01:21]} Kh7 {[%emt 0:00:40]} 40. Qf5+ {[%emt 0:00:09]} 1/2-1/2

[Event "44th Chess Olympiad Women 2022"]
[Site "Chennai"]
[Date "2022.08.05"]
[Round "7.63"]
[White "Garcia, Andrea Nicole"]
[Black "Makda Araya Fessehaye"]
[Result "1-0"]
[WhiteElo "1631"]
[BlackElo "1242"]
[Annotator "NA RC"]
[PlyCount "103"]
[EventDate "2022.??.??"]
[TimeControl "60"]

1. e4 {[%emt 0:00:03]} d5 {[%emt 0:00:28]} 2. exd5 {[%emt 0:00:09]} Qxd5 {
[%emt 0:00:38]} 3. Nc3 {[%emt 0:00:07]} Qd6 {[%emt 0:00:52]} 4. Nf3 {[%emt 0:
00:00]} Nf6 {[%emt 0:01:14]} 5. h3 {[%emt 0:01:07]} b6 {[%emt 0:05:26]} 6. Bc4
{[%emt 0:01:54]} Bb7 {[%emt 0:00:57]} 7. Qe2 {[%emt 0:04:40]} Nc6 {[%emt 0:00:
00]} 8. Nb5 {[%emt 0:01:59]} Qd7 {[%emt 0:02:54]} 9. Ne5 {[%emt 0:30:11]} Nxe5
{[%emt 0:14:50]} 10. Qxe5 {[%emt 0:00:09]} Rc8 {[%emt 0:02:26]} 11. f3 {
[%emt 0:11:12]} e6 {[%emt 0:02:14]} 12. Nxa7 {[%emt 0:09:23]} Ra8 {[%emt 0:00:
00]} 13. Nb5 {[%emt 0:01:12]} Nd5 {[%emt 0:09:06]} 14. Nc3 {[%emt 0:08:47]} Bd6
{[%emt 0:02:52]} 15. Qxg7 {[%emt 0:23:49]} Ke7 {[%emt 0:03:19]} 16. Nxd5+ {
[%emt 0:00:00]} Bxd5 {[%emt 0:02:24]} 17. Qg5+ {[%emt 0:00:00]} Kf8 {[%emt 0:
00:00]} 18. Qh6+ {[%emt 0:00:00]} Ke7 {[%emt 0:02:02]} 19. d3 {[%emt 0:00:00]}
Bg3+ {[%emt 0:02:04]} 20. Ke2 {[%emt 0:00:03]} Bxc4 {[%emt 0:01:47]} 21. Qg5+ {
[%emt 0:00:22]} Ke8 {[%emt 0:00:31]} 22. Qxg3 {[%emt 0:00:10]} Bd5 {[%emt 0:00:
00]} 23. a3 {[%emt 0:01:06]} h6 {[%emt 0:02:01]} 24. Qe5 {[%emt 0:00:45]} Ke7 {
[%emt 0:01:28]} 25. Bf4 {[%emt 0:00:38]} Rac8 {[%emt 0:02:15]} 26. Bg3 {
[%emt 0:00:32]} Rhg8 {[%emt 0:01:51]} 27. Bh4+ {[%emt 0:00:23]} Kf8 {[%emt 0:
00:00]} 28. Rhg1 {[%emt 0:00:21]} Qb5 {[%emt 0:02:41]} 29. Qc3 {[%emt 0:01:12]}
c5 {[%emt 0:02:34]} 30. a4 {[%emt 0:00:34]} Qc6 {[%emt 0:01:09]} 31. Qd2 {
[%emt 0:00:50]} Rg6 {[%emt 0:00:59]} 32. c4 {[%emt 0:00:31]} Rxg2+ {[%emt 0:00:
00]} 33. Rxg2 {[%emt 0:00:47]} Bxf3+ {[%emt 0:00:17]} 34. Kf2 {[%emt 0:00:20]}
Bxg2 {[%emt 0:00:39]} 35. Qxh6+ {[%emt 0:00:14]} Ke8 {[%emt 0:00:13]} 36. Qh8+
{[%emt 0:00:52]} Kd7 {[%emt 0:00:19]} 37. Qf6 {[%emt 0:00:18]} Kc7 {[%emt 0:00:
00]} 38. Qe5+ {[%emt 0:00:51]} Kb7 {[%emt 0:00:34]} 39. Qe3 {[%emt 0:00:33]}
Rg8 {[%emt 0:01:48]} 40. Rg1 {[%emt 0:01:08]} Qd6 {[%emt 0:01:28]} 41. Rxg2 {
[%emt 0:29:47]} Rxg2+ {[%emt 0:31:38]} 42. Kxg2 {[%emt 0:00:08]} Qf8 {[%emt 0:
00:00]} 43. Bg3 {[%emt 0:00:00]} Qg7 {[%emt 0:00:00]} 44. Qe5 {[%emt 0:00:00]}
Qg8 {[%emt 0:00:00]} 45. Qc7+ {[%emt 0:00:00]} Ka6 {[%emt 0:00:00]} 46. Qb8 {
[%emt 0:00:00]} Qxb8 {[%emt 0:00:00]} 47. Bxb8 {[%emt 0:00:00]} Ka5 {[%emt 0:
00:00]} 48. h4 {[%emt 0:00:00]} Kxa4 {[%emt 0:00:43]} 49. h5 {[%emt 0:00:05]}
b5 {[%emt 0:00:00]} 50. cxb5 {[%emt 0:00:00]} Kxb5 {[%emt 0:00:00]} 51. h6 {
[%emt 0:00:00]} f6 {[%emt 0:00:00]} 52. h7 {[%emt 0:00:00]} 1-0

[Event "44th Chess Olympiad Women 2022"]
[Site "Chennai"]
[Date "2022.08.05"]
[Round "7.64"]
[White "Aishath Alya Mohamed Shareef"]
[Black "Ali, Amy"]
[Result "0-1"]
[WhiteElo "1110"]
[BlackElo "1361"]
[Annotator "NA RC"]
[PlyCount "120"]
[EventDate "2022.??.??"]
[TimeControl "60"]

1. d4 {[%emt 0:00:06]} d5 {[%emt 0:00:17]} 2. Bf4 {[%emt 0:00:19]} c5 {[%emt 0:
00:00]} 3. e3 {[%emt 0:00:49]} Nc6 {[%emt 0:01:09]} 4. Nf3 {[%emt 0:00:56]} Bg4
{[%emt 0:01:13]} 5. c3 {[%emt 0:01:31]} Nf6 {[%emt 0:02:26]} 6. Be2 {[%emt 0:
00:00]} e6 {[%emt 0:03:00]} 7. Nbd2 {[%emt 0:04:46]} Be7 {[%emt 0:01:10]} 8.
Ne5 {[%emt 0:04:00]} Bxe2 {[%emt 0:01:56]} 9. Qxe2 {[%emt 0:00:17]} O-O {
[%emt 0:06:52]} 10. g4 {[%emt 0:03:47]} Nd7 {[%emt 0:06:09]} 11. Nxd7 {[%emt 0:
00:00]} Qxd7 {[%emt 0:00:11]} 12. h4 {[%emt 0:01:06]} Bd6 {[%emt 0:05:13]} 13.
Bxd6 {[%emt 0:01:17]} Qxd6 {[%emt 0:00:07]} 14. f4 {[%emt 0:01:08]} cxd4 {
[%emt 0:02:50]} 15. cxd4 {[%emt 0:03:16]} Qb4 {[%emt 0:13:33]} 16. Rb1 {
[%emt 0:15:01]} Rac8 {[%emt 0:05:10]} 17. a3 {[%emt 0:04:04]} Qd6 {[%emt 0:00:
00]} 18. g5 {[%emt 0:07:42]} Ne7 {[%emt 0:26:46]} 19. Qd3 {[%emt 0:05:48]} Qa6
{[%emt 0:04:35]} 20. Qb3 {[%emt 0:08:25]} Rc7 {[%emt 0:01:11]} 21. Kf2 {
[%emt 0:04:47]} Rfc8 {[%emt 0:01:44]} 22. Kf3 {[%emt 0:05:36]} Rc2 {[%emt 0:00:
00]} 23. Rbd1 {[%emt 0:04:53]} Nf5 {[%emt 0:02:56]} 24. h5 {[%emt 0:02:22]} h6
{[%emt 0:02:05]} 25. gxh6 {[%emt 0:00:58]} Nxh6 {[%emt 0:00:04]} 26. Rhe1 {
[%emt 0:02:32]} Nf5 {[%emt 0:01:32]} 27. Nf1 {[%emt 0:01:23]} Nd6 {[%emt 0:00:
00]} 28. Rd2 {[%emt 0:03:27]} Rxd2 {[%emt 0:00:35]} 29. Nxd2 {[%emt 0:00:08]}
Ne4 {[%emt 0:00:59]} 30. Nxe4 {[%emt 0:02:12]} dxe4+ {[%emt 0:00:01]} 31. Kxe4
{[%emt 0:00:22]} Qc6+ {[%emt 0:00:06]} 32. Kd3 {[%emt 0:00:49]} Qf3 {[%emt 0:
00:00]} 33. Qd1 {[%emt 0:01:15]} Qc6 {[%emt 0:01:04]} 34. Rg1 {[%emt 0:02:12]}
Qb5+ {[%emt 0:00:10]} 35. Ke4 {[%emt 0:02:22]} Qd5+ {[%emt 0:00:09]} 36. Kd3 {
[%emt 0:00:49]} Qb5+ {[%emt 0:00:06]} 37. Ke4 {[%emt 0:01:03]} Qd5+ {[%emt 0:
00:00]} 38. Kd3 {[%emt 0:00:21]} Qb5+ {[%emt 0:00:47]} 39. Ke4 {[%emt 0:02:02]}
Qf5+ {[%emt 0:00:28]} 40. Kf3 {[%emt 0:00:14]} Qxh5+ {[%emt 0:00:08]} 41. Ke4 {
[%emt 0:30:23]} Qf5+ {[%emt 0:30:13]} 42. Kf3 {[%emt 0:00:14]} Qh5+ {[%emt 0:
00:00]} 43. Rg4 {[%emt 0:00:19]} Qh3+ {[%emt 0:01:04]} 44. Kf2 {[%emt 0:01:07]}
Qh5 {[%emt 0:00:58]} 45. Qg1 {[%emt 0:00:26]} Rc2+ {[%emt 0:00:20]} 46. Kf3 {
[%emt 0:00:26]} Rxb2 {[%emt 0:00:56]} 47. Qc1 {[%emt 0:00:45]} Qh3+ {[%emt 0:
00:00]} 48. Rg3 {[%emt 0:00:09]} Qh5+ {[%emt 0:00:11]} 49. Ke4 {[%emt 0:00:33]}
Qd5+ {[%emt 0:00:29]} 50. Kd3 {[%emt 0:00:34]} Qb3+ {[%emt 0:00:45]} 51. Qc3 {
[%emt 0:00:00]} Qb5+ {[%emt 0:00:00]} 52. Ke4 {[%emt 0:00:00]} Qd5+ {[%emt 0:
00:00]} 53. Kd3 {[%emt 0:00:00]} Rb3 {[%emt 0:00:00]} 54. Rg5 {[%emt 0:00:00]}
Rxc3+ {[%emt 0:00:00]} 55. Kxc3 {[%emt 0:00:00]} Qh1 {[%emt 0:00:00]} 56. Rc5 {
[%emt 0:00:00]} Qc1+ {[%emt 0:00:00]} 57. Kb4 {[%emt 0:00:00]} Qxe3 {[%emt 0:
00:00]} 58. Rc8+ {[%emt 0:00:00]} Kh7 {[%emt 0:00:00]} 59. Rc4 {[%emt 0:00:00]}
Qxf4 {[%emt 0:00:00]} 60. d5 {[%emt 0:00:00]} Qd6+ {[%emt 0:03:08]} 0-1

[Event "44th Chess Olympiad Women 2022"]
[Site "Chennai"]
[Date "2022.08.05"]
[Round "7.64"]
[White "James, Shemilah"]
[Black "Abdul Rasheed, Mariyam Laisa"]
[Result "0-1"]
[WhiteElo "1590"]
[BlackElo "1145"]
[Annotator "NA RC"]
[PlyCount "141"]
[EventDate "2022.??.??"]
[TimeControl "60"]

1. e4 {[%emt 0:00:08]} c5 {[%emt 0:00:04]} 2. Nf3 {[%emt 0:00:07]} d6 {[%emt 0:
00:00]} 3. d4 {[%emt 0:00:06]} cxd4 {[%emt 0:00:04]} 4. Nxd4 {[%emt 0:00:07]}
Nf6 {[%emt 0:00:05]} 5. Nc3 {[%emt 0:00:14]} g6 {[%emt 0:00:06]} 6. Be3 {
[%emt 0:00:14]} Bg7 {[%emt 0:00:09]} 7. f3 {[%emt 0:00:33]} Nc6 {[%emt 0:00:25]
} 8. Qd2 {[%emt 0:00:49]} Bd7 {[%emt 0:00:21]} 9. O-O-O {[%emt 0:01:18]} O-O {
[%emt 0:01:03]} 10. g4 {[%emt 0:01:48]} Rc8 {[%emt 0:00:16]} 11. h4 {[%emt 0:
00:00]} Ne5 {[%emt 0:00:44]} 12. h5 {[%emt 0:06:31]} Qa5 {[%emt 0:01:50]} 13.
Nb3 {[%emt 0:05:36]} Qc7 {[%emt 0:04:39]} 14. Be2 {[%emt 0:03:45]} Nc4 {
[%emt 0:01:44]} 15. Bxc4 {[%emt 0:00:32]} Qxc4 {[%emt 0:00:07]} 16. hxg6 {
[%emt 0:01:38]} fxg6 {[%emt 0:00:19]} 17. Bh6 {[%emt 0:03:58]} Bxh6 {[%emt 0:
00:00]} 18. Qxh6 {[%emt 0:01:00]} b5 {[%emt 0:01:56]} 19. e5 {[%emt 0:06:41]}
dxe5 {[%emt 0:12:09]} 20. Nd2 {[%emt 0:37:25]} Qc7 {[%emt 0:09:59]} 21. Nde4 {
[%emt 0:01:57]} Rf7 {[%emt 0:04:41]} 22. Kb1 {[%emt 0:06:41]} b4 {[%emt 0:00:
00]} 23. Nxf6+ {[%emt 0:02:42]} exf6 {[%emt 0:00:42]} 24. Nd5 {[%emt 0:00:36]}
Qxc2+ {[%emt 0:13:15]} 25. Ka1 {[%emt 0:00:02]} Qc6 {[%emt 0:01:09]} 26. Nxb4 {
[%emt 0:02:49]} Qxf3 {[%emt 0:08:42]} 27. g5 {[%emt 0:01:22]} Qf4 {[%emt 0:00:
00]} 28. Nd3 {[%emt 0:02:07]} Qxg5 {[%emt 0:00:59]} 29. Qxg5 {[%emt 0:00:16]}
fxg5 {[%emt 0:00:36]} 30. Nxe5 {[%emt 0:00:13]} Rf2 {[%emt 0:01:40]} 31. Rxd7 {
[%emt 0:03:10]} Re8 {[%emt 0:04:50]} 32. Nc6 {[%emt 0:01:08]} Rfe2 {[%emt 0:00:
00]} 33. Rhd1 {[%emt 0:02:46]} g4 {[%emt 0:01:37]} 34. a4 {[%emt 0:01:01]} Re1
{[%emt 0:03:04]} 35. Rd8 {[%emt 0:00:31]} Rxd1+ {[%emt 0:01:38]} 36. Rxd1 {
[%emt 0:00:02]} a6 {[%emt 0:01:09]} 37. Rg1 {[%emt 0:00:55]} h5 {[%emt 0:00:13]
} 38. b3 {[%emt 0:00:29]} Kf7 {[%emt 0:00:23]} 39. Nd4 {[%emt 0:00:36]} Re4 {
[%emt 0:02:44]} 40. Nc2 {[%emt 0:00:39]} h4 {[%emt 0:02:24]} 41. Kb2 {[%emt 0:
00:00]} g3 {[%emt 0:02:39]} 42. Kc3 {[%emt 0:02:14]} Ke6 {[%emt 0:01:31]} 43.
Kd3 {[%emt 0:01:35]} Ke5 {[%emt 0:05:32]} 44. b4 {[%emt 0:06:17]} Rg4 {[%emt 0:
00:00]} 45. Re1+ {[%emt 0:05:22]} Kd6 {[%emt 0:00:57]} 46. Ke3 {[%emt 0:01:09]}
g5 {[%emt 0:01:45]} 47. Rd1+ {[%emt 0:03:44]} Ke5 {[%emt 0:04:05]} 48. Kf3 {
[%emt 0:01:49]} Rf4+ {[%emt 0:00:24]} 49. Ke3 {[%emt 0:00:37]} h3 {[%emt 0:00:
00]} 50. Ne1 {[%emt 0:01:00]} Re4+ {[%emt 0:07:27]} 51. Kf3 {[%emt 0:01:12]} g2
{[%emt 0:02:06]} 52. Nd3+ {[%emt 0:00:47]} Kf5 {[%emt 0:00:57]} 53. Nf2 {
[%emt 0:01:35]} g4+ {[%emt 0:02:15]} 54. Kg3 {[%emt 0:00:24]} Rxb4 {[%emt 0:00:
00]} 55. Nxh3 {[%emt 0:01:38]} gxh3 {[%emt 0:00:54]} 56. Kxh3 {[%emt 0:00:05]}
Rxa4 {[%emt 0:00:21]} 57. Kxg2 {[%emt 0:00:06]} Ke4 {[%emt 0:00:19]} 58. Kg3 {
[%emt 0:00:47]} Ke3 {[%emt 0:00:26]} 59. Rd8 {[%emt 0:00:36]} Rd4 {[%emt 0:00:
00]} 60. Ra8 {[%emt 0:00:30]} Rd6 {[%emt 0:00:21]} 61. Rb8 {[%emt 0:00:24]} Kd4
{[%emt 0:00:21]} 62. Kf3 {[%emt 0:00:34]} a5 {[%emt 0:00:46]} 63. Rb1 {[%emt 0:
00:00]} Kc3 {[%emt 0:00:22]} 64. Ra1 {[%emt 0:00:59]} Ra6 {[%emt 0:00:08]} 65.
Ke3 {[%emt 0:00:12]} a4 {[%emt 0:00:10]} 66. Ra3+ {[%emt 0:01:40]} Kb2 {
[%emt 0:00:39]} 67. Rd3 {[%emt 0:00:10]} a3 {[%emt 0:00:28]} 68. Rd2+ {[%emt 0:
00:00]} Kc1 {[%emt 0:00:31]} 69. Ra2 {[%emt 0:02:24]} Kb1 {[%emt 0:00:13]} 70.
Rh2 {[%emt 0:00:27]} a2 {[%emt 0:00:25]} 71. Kd4 {[%emt 0:01:28]} 0-1

[Event "44th Chess Olympiad Women 2022"]
[Site "Chennai"]
[Date "2022.08.05"]
[Round "7.64"]
[White "Mohammed, Celine Angelina"]
[Black "Kiyan Mohamed, Usamath"]
[Result "0-1"]
[WhiteElo "1100"]
[BlackElo "1100"]
[Annotator "NA RC"]
[PlyCount "140"]
[EventDate "2022.??.??"]
[TimeControl "60"]

1. e4 {[%emt 0:00:03]} e5 {[%emt 0:00:04]} 2. Nf3 {[%emt 0:00:03]} Nc6 {
[%emt 0:00:05]} 3. Nc3 {[%emt 0:00:11]} Nf6 {[%emt 0:00:14]} 4. a3 {[%emt 0:00:
00]} a6 {[%emt 0:00:26]} 5. d4 {[%emt 0:06:15]} exd4 {[%emt 0:02:56]} 6. Nxd4 {
[%emt 0:00:12]} Ne5 {[%emt 0:02:16]} 7. f4 {[%emt 0:02:24]} Nc6 {[%emt 0:02:45]
} 8. e5 {[%emt 0:02:32]} Ng8 {[%emt 0:00:24]} 9. Nxc6 {[%emt 0:04:55]} bxc6 {
[%emt 0:00:58]} 10. Bd3 {[%emt 0:02:23]} Bc5 {[%emt 0:01:35]} 11. Qh5 {[%emt 0:
00:00]} Qe7 {[%emt 0:03:11]} 12. Qf3 {[%emt 0:04:40]} Nh6 {[%emt 0:03:54]} 13.
Be3 {[%emt 0:02:54]} O-O {[%emt 0:02:45]} 14. Qe4 {[%emt 0:03:47]} g6 {[%emt 0:
00:00]} 15. O-O {[%emt 0:02:29]} d5 {[%emt 0:04:41]} 16. Nxd5 {[%emt 0:08:49]}
Bxe3+ {[%emt 0:01:30]} 17. Nxe3 {[%emt 0:00:18]} Qc5 {[%emt 0:05:48]} 18. Kh1 {
[%emt 0:03:24]} Re8 {[%emt 0:12:22]} 19. Nc4 {[%emt 0:08:00]} Bf5 {[%emt 0:00:
00]} 20. Qe3 {[%emt 0:04:17]} Qd5 {[%emt 0:03:18]} 21. Qf3 {[%emt 0:05:09]} Qc5
{[%emt 0:06:29]} 22. Rad1 {[%emt 0:06:06]} Bg4 {[%emt 0:03:23]} 23. Qg3 {
[%emt 0:04:43]} Bxd1 {[%emt 0:06:21]} 24. Rxd1 {[%emt 0:00:36]} Rad8 {[%emt 0:
00:00]} 25. Qf3 {[%emt 0:02:19]} Nf5 {[%emt 0:04:24]} 26. g3 {[%emt 0:06:49]}
Nd4 {[%emt 0:03:13]} 27. Qf2 {[%emt 0:01:02]} Qd5+ {[%emt 0:03:07]} 28. Kg1 {
[%emt 0:02:05]} Nf5 {[%emt 0:03:17]} 29. Qd2 {[%emt 0:02:53]} Qc5+ {[%emt 0:00:
00]} 30. Kf1 {[%emt 0:00:27]} Rd7 {[%emt 0:01:18]} 31. b4 {[%emt 0:01:12]} Qxc4
{[%emt 0:01:25]} 32. Bxc4 {[%emt 0:00:37]} Rxd2 {[%emt 0:00:05]} 33. Rxd2 {
[%emt 0:00:10]} Ne3+ {[%emt 0:00:19]} 34. Ke2 {[%emt 0:00:23]} Nxc4 {[%emt 0:
00:00]} 35. Rd7 {[%emt 0:01:58]} Rc8 {[%emt 0:00:12]} 36. Rd3 {[%emt 0:01:02]}
Kf8 {[%emt 0:01:10]} 37. Rc3 {[%emt 0:00:39]} Nb6 {[%emt 0:00:16]} 38. Rxc6 {
[%emt 0:00:31]} Ke7 {[%emt 0:00:41]} 39. c4 {[%emt 0:00:24]} Kd7 {[%emt 0:00:
00]} 40. b5 {[%emt 0:00:56]} axb5 {[%emt 0:00:32]} 41. cxb5 {[%emt 0:30:04]}
Ra8 {[%emt 0:30:39]} 42. Rc3 {[%emt 0:00:45]} Ra5 {[%emt 0:00:00]} 43. Rb3 {
[%emt 0:00:00]} Nc4 {[%emt 0:00:00]} 44. Rb4 {[%emt 0:00:00]} Nxa3 {[%emt 0:00:
00]} 45. b6 {[%emt 0:00:00]} cxb6 {[%emt 0:00:00]} 46. Rxb6 {[%emt 0:00:00]} h5
{[%emt 0:00:00]} 47. Rd6+ {[%emt 0:00:00]} Ke7 {[%emt 0:00:00]} 48. Rd1 {
[%emt 0:00:00]} g5 {[%emt 0:00:00]} 49. Ra1 {[%emt 0:00:00]} Ke6 {[%emt 0:00:
00]} 50. Kf3 {[%emt 0:00:00]} g4+ {[%emt 0:00:00]} 51. Kg2 {[%emt 0:00:00]} Nc4
{[%emt 0:00:00]} 52. Re1 {[%emt 0:00:00]} Ra2+ {[%emt 0:00:00]} 53. Kg1 {
[%emt 0:00:00]} Nd2 {[%emt 0:00:00]} 54. Rc1 {[%emt 0:05:20]} Nf3+ {[%emt 0:00:
00]} 55. Kf1 {[%emt 0:00:38]} Nxh2+ {[%emt 0:00:00]} 56. Ke1 {[%emt 0:01:35]}
h4 {[%emt 0:00:00]} 57. Rc6+ {[%emt 0:00:28]} Kd5 {[%emt 0:00:00]} 58. Rf6 {
[%emt 0:02:25]} hxg3 {[%emt 0:00:20]} 59. Rd6+ {[%emt 0:01:34]} Ke4 {[%emt 0:
00:00]} 60. Rd2 {[%emt 0:00:59]} Rxd2 {[%emt 0:00:18]} 61. Kxd2 {[%emt 0:00:10]
} g2 {[%emt 0:00:34]} 62. f5 {[%emt 0:00:30]} g1=Q {[%emt 0:00:14]} 63. e6 {
[%emt 0:00:15]} Qe3+ {[%emt 0:00:25]} 64. Kc2 {[%emt 0:00:20]} fxe6 {[%emt 0:
00:00]} 65. fxe6 {[%emt 0:00:17]} Kd4 {[%emt 0:00:23]} 66. e7 {[%emt 0:00:18]}
Qxe7 {[%emt 0:00:51]} 67. Kb3 {[%emt 0:00:52]} g3 {[%emt 0:00:31]} 68. Ka4 {
[%emt 0:00:20]} Qb7 {[%emt 0:00:13]} 69. Ka3 {[%emt 0:00:15]} Kc3 {[%emt 0:00:
00]} 70. Ka2 {[%emt 0:00:09]} Qb2# {[%emt 0:00:08]} 0-1

[Event "44th Chess Olympiad Women 2022"]
[Site "Chennai"]
[Date "2022.08.05"]
[Round "7.64"]
[White "Nihaya, Ahmed"]
[Black "La Fleur, Zara"]
[Result "0-1"]
[WhiteElo "1233"]
[BlackElo "1513"]
[Annotator "NA"]
[PlyCount "92"]
[EventDate "2022.??.??"]
[TimeControl "60"]

1. e4 {[%emt 0:00:05]} e5 {[%emt 0:00:09]} 2. Nf3 {[%emt 0:00:05]} Nc6 {
[%emt 0:00:12]} 3. Bc4 {[%emt 0:00:08]} Bc5 {[%emt 0:00:17]} 4. c3 {[%emt 0:00:
00]} Nf6 {[%emt 0:00:19]} 5. d3 {[%emt 0:00:07]} d6 {[%emt 0:00:37]} 6. h3 {
[%emt 0:00:17]} O-O {[%emt 0:00:31]} 7. Nbd2 {[%emt 0:00:17]} Bb6 {[%emt 0:00:
00]} 8. Bb3 {[%emt 0:00:35]} Be6 {[%emt 0:02:29]} 9. Nf1 {[%emt 0:00:17]} Ne7 {
[%emt 0:03:24]} 10. Ng3 {[%emt 0:01:17]} Ng6 {[%emt 0:00:40]} 11. O-O {[%emt 0:
00:00]} c6 {[%emt 0:05:35]} 12. Be3 {[%emt 0:01:22]} Re8 {[%emt 0:04:48]} 13.
Ng5 {[%emt 0:02:13]} Bxb3 {[%emt 0:02:04]} 14. axb3 {[%emt 0:00:28]} d5 {
[%emt 0:06:46]} 15. Qe2 {[%emt 0:07:29]} h6 {[%emt 0:08:27]} 16. Nf3 {[%emt 0:
00:00]} Nf4 {[%emt 0:05:20]} 17. Qc2 {[%emt 0:02:22]} N6h5 {[%emt 0:07:16]} 18.
Nf5 {[%emt 0:03:05]} Qf6 {[%emt 0:15:52]} 19. Bxb6 {[%emt 0:04:12]} axb6 {
[%emt 0:00:35]} 20. Kh2 {[%emt 0:00:28]} Ne6 {[%emt 0:02:46]} 21. g3 {[%emt 0:
00:00]} g6 {[%emt 0:15:35]} 22. N5h4 {[%emt 0:04:55]} Ng5 {[%emt 0:03:31]} 23.
Ng1 {[%emt 0:02:19]} Rad8 {[%emt 0:06:19]} 24. Qe2 {[%emt 0:00:49]} dxe4 {
[%emt 0:01:31]} 25. dxe4 {[%emt 0:00:18]} Nf4 {[%emt 0:00:48]} 26. Qe3 {
[%emt 0:04:59]} Rd3 {[%emt 0:01:40]} 27. Qe1 {[%emt 0:03:11]} Qe6 {[%emt 0:00:
00]} 28. g4 {[%emt 0:05:23]} Ngxh3 {[%emt 0:01:09]} 29. f3 {[%emt 0:00:39]}
Nxg1 {[%emt 0:00:16]} 30. Kxg1 {[%emt 0:02:18]} Red8 {[%emt 0:01:15]} 31. Ng2 {
[%emt 0:01:20]} Nxg2 {[%emt 0:00:53]} 32. Kxg2 {[%emt 0:00:07]} Qxb3 {[%emt 0:
00:00]} 33. Rf2 {[%emt 0:00:24]} Kg7 {[%emt 0:00:21]} 34. Re2 {[%emt 0:02:44]}
Qe6 {[%emt 0:00:31]} 35. Qf2 {[%emt 0:00:19]} Qf6 {[%emt 0:00:17]} 36. Rf1 {
[%emt 0:00:44]} Qf4 {[%emt 0:00:30]} 37. Qxb6 {[%emt 0:01:30]} Rd2 {[%emt 0:00:
00]} 38. Ref2 {[%emt 0:01:55]} R8d3 {[%emt 0:00:48]} 39. Rxd2 {[%emt 0:00:49]}
Rxd2+ {[%emt 0:00:05]} 40. Rf2 {[%emt 0:00:12]} h5 {[%emt 0:00:57]} 41. Rxd2 {
[%emt 0:30:40]} Qxd2+ {[%emt 0:30:05]} 42. Kh3 {[%emt 0:08:05]} hxg4+ {[%emt 0:
00:00]} 43. fxg4 {[%emt 0:00:00]} Qd3+ {[%emt 0:00:00]} 44. Kh4 {[%emt 0:00:00]
} g5+ {[%emt 0:00:00]} 45. Kxg5 {[%emt 0:00:00]} Qd2+ {[%emt 0:00:00]} 46. Kh4
{[%emt 0:00:00]} Qh2+ {[%emt 0:00:00]} 0-1